Cogmind - Beta 15 @@@ ROGUE MODE // 2025.05.31 @ 18:36:32 Player: Eve Result: Self-destructed Performance ------------- Evolutions (2) 1000 Regions Visited (5) 1000 Robots Destroyed (25) 125 Value Destroyed (518) 518 Prototype IDs (2) 40 Alien Tech Used (0) 0 Bonus (0) 0 TOTAL SCORE: 2683 Bonus ------- None Cogmind --------- Core Integrity 477/550 Matter 6/300 Energy 250/250 System Corruption 0% Temperature Cool (49) Movement Flying (29) Location -8/Materials Parts ------- > --- POWER (1) -------- Ion Engine > --- PROPULSION (5) --- Flight Unit Flight Unit Flight Unit Improved VTOL Module > --- UTILITY (3) ------ Improved Signal Interpreter Improved Terrain Scan Processor > --- WEAPON (2) ------- Advanced Assault Cannon Advanced Assault Cannon > --- INVENTORY (5) ---- Light Ion Engine Flight Unit Advanced Assault Cannon Peak State ------------ > --- POWER ------------ Ion Engine > --- PROPULSION ------- Flight Unit Flight Unit Flight Unit Flight Unit Flight Unit > --- UTILITY ---------- Improved Signal Interpreter Improved Terrain Scanner Improved Terrain Scan Processor > --- WEAPON ----------- Advanced Assault Cannon Advanced Assault Cannon > --- INVENTORY -------- Light Ion Engine Flight Unit Advanced Assault Cannon Advanced Assault Cannon [Rating: 24] Favorites ----------- Power Ion Engine Engine Ion Engine Propulsion Flight Unit Leg Aluminum Leg Flight Unit Flight Unit Utility Visual Processing Unit Device Seismic Detector Processor Visual Processing Unit Weapon Small Laser Energy Gun Small Laser Ballistic Gun Light Assault Rifle Ballistic Cannon Assault Cannon Build | -11 -10 -10 -10 -9 -8 ------- Run | Yrd Mat Min Exi Min Mat Slots Evolved 4 | . . . . . 4 Power . | . . . . . . Propulsion 3 | . . . . . 3 Utility 1 | . . . . . 1 Weapon . | . . . . . . Parts Attached 33 | 5 3 11 . . 14 Power 4 | 1 . 2 . . 1 Engine 4 | 1 . 2 . . 1 Core . | . . . . . . Reactor . | . . . . . . Propulsion 15 | 2 . 7 . . 6 Treads . | . . . . . . Leg 4 | 2 . 2 . . . Wheel . | . . . . . . Hover . | . . . . . . Flight 11 | . . 5 . . 6 Utility 5 | . 2 . . . 3 Device 2 | . 1 . . . 1 Storage . | . . . . . . Processor 3 | . 1 . . . 2 Hackware . | . . . . . . Protection . | . . . . . . Artifact . | . . . . . . Weapon 9 | 2 1 2 . . 4 Energy Gun 1 | 1 . . . . . Energy Cannon . | . . . . . . Ballistic Gun 3 | 1 1 1 . . . Ballistic Cannon 5 | . . 1 . . 4 Launcher . | . . . . . . Special Weapon . | . . . . . . Impact Weapon . | . . . . . . Slashing Weapon . | . . . . . . Piercing Weapon . | . . . . . . Special Melee Weapon . | . . . . . . Unidentified Prototypes . | . . . . . . Parts Lost 10 | . . 5 . 1 4 Power 1 | . . 1 . . . Propulsion 6 | . . 3 . . 3 Utility 2 | . . 1 . 1 . Weapon 1 | . . . . . 1 Highest Loss Streak 3 | . . 3 . 1 2 To Critical Strikes . | . . . . . . Average Backups 4 | 1 3 4 4 5 3 Power . | . 1 . . . . Propulsion 3 | . 2 4 3 4 1 Utility . | . . . 1 1 . Weapon . | . . . . . 1 Tool/Special . | . . . . . . Unused Backups 3 | . 1 1 1 . . Power 3 | . 1 1 1 . . Propulsion . | . . . . . . Utility . | . . . . . . Weapon . | . . . . . . Tool/Special . | . . . . . . Average Slot Usage (%) 79 | . 75 86 71 68 80 Engine 13 | . 14 13 14 14 9 Leg 11 | . 28 13 . . . Flight 14 | . . 6 28 28 38 Device 6 | . 1 12 . . 4 Processor 12 | . 2 14 14 11 15 Energy Gun 7 | . 14 10 . . . Ballistic Gun 7 | . 14 10 . . . Ballistic Cannon 6 | . . 3 14 14 13 Peak Build Rating 24 | 5 8 9 9 8 24 Average Rating 8 | 3 5 7 8 7 18 On Entrance 5 | . 5 8 8 8 6 Naked Turns . | . . . . . . Heaviest Build 18 | 7 8 11 8 8 18 Greatest Support 21 | 20 20 20 8 8 21 Greatest Overweight (x) 2 | . . 2 . . 1 Average Overweight (x) . | . . . . . . Largest Inventory Capacity 5 | 5 5 5 5 5 5 Average Capacity 5 | 5 5 5 5 5 5 Most Carried 5 | 4 5 5 5 5 5 Average Carried 4 | 1 3 4 4 5 3 Final Capacity 5 | 5 5 5 5 5 5 Final Carried 5 | 1 5 5 5 5 3 Class Distribution -------------------- 50% | Mutant 43% | Scavenger-Mutant 6% | Scavenger-Sprinter Dominant Class ---------------- Mutant | -10/Materials Mutant | -10/Mines Scavenger-Mutant | -10/Exiles Mutant | -9/Mines Scavenger-Sprinter | -8/Materials Resources | -11 -10 -10 -10 -9 -8 ----------- Run | Yrd Mat Min Exi Min Mat Matter Collected 592 | 224 64 256 . 32 16 Remotely . | . . . . . . Salvage Created 538 | . 118 387 . . 33 Parts 43 | . 14 21 . . 8 Haulers Intercepted . | . . . . . . Recyclers Shooed . | . . . . . . Parts Field Recycled . | . . . . . . Retrieved Matter . | . . . . . . Parts Self-Destructed . | . . . . . . Prevented . | . . . . . . Kills | -11 -10 -10 -10 -9 -8 ------- Run | Yrd Mat Min Exi Min Mat Combat Hostiles Destroyed 24 | . 6 14 . . 4 Guns 14 | . 6 8 . . . Cannons 10 | . . 6 . . 4 Classes Destroyed 6 | . 2 3 . . 1 Builder 1 | . . 1 . . . Watcher 1 | . 1 . . . . Swarmer 12 | . 6 3 . . 3 Cutter 1 | . . . . . 1 Grunt 10 | . . 10 . . . Assembled 1 | . . 1 . . . Best Kill Streak 7 | . 4 7 . . 3 Combat Bots Only 5 | . 3 5 . . 3 Max Kills in Single Turn 1 | . 1 1 . . 1 Gunslinging . | . . . . . . Exploded . | . . . . . . Melee . | . . . . . . Uniques/NPCs Destroyed . | . . . . . . Combat | -11 -10 -10 -10 -9 -8 -------- Run | Yrd Mat Min Exi Min Mat Hostile Shots Fired 142 | . 30 75 . . 37 Missed 48 | . 7 25 . . 16 Hits 94 | . 23 50 . . 21 Melee 5 | . . 3 . . 2 Projectile 89 | . 23 47 . . 19 Critical Strikes 1 | . . . . . 1 Damage Taken 1163 | . 169 566 . 38 390 Core 304 | . 49 182 . . 73 Absorbed by Shields . | . . . . . . Core Remaining (%) 53 | 100 . . . 7 . Volleys Fired 102 | . 20 66 . . 16 Largest 2 | . 2 2 . . 2 Hottest 80 | . 60 60 . . 80 Shots Fired 172 | . 40 102 . . 30 Gun 112 | . 40 72 . . . Cannon 60 | . . 30 . . 30 Launcher . | . . . . . . Special . | . . . . . . Kinetic 116 | . 20 66 . . 30 Thermal 56 | . 20 36 . . . Explosive . | . . . . . . Electromagnetic . | . . . . . . Robot Hit Streak 7 | . 6 7 . . 6 Robot Miss Streak 8 | . 5 8 . . 7 Penetration Max . | . . . . . . Secondary Targets 1 | . 1 . . . . Max Gunslinging Chain 1 | . 1 . . . . Shots Hit Robots 81 | . 19 53 . . 9 Core Hits 36 | . 9 23 . . 4 Critical Kills . | . . . . . . Critical Parts Destroyed . | . . . . . . Critical Strikes . | . . . . . . Melee Attacks . | . . . . . . Impact . | . . . . . . Slashing . | . . . . . . Piercing . | . . . . . . Sneak Attacks . | . . . . . . Combat Hostiles . | . . . . . . Follow-up Attacks . | . . . . . . Damage Inflicted 1267 | . 202 836 . . 229 Guns 557 | . 202 355 . . . Cannons 710 | . . 481 . . 229 Explosions . | . . . . . . Melee . | . . . . . . Ramming . | . . . . . . Kinetic 988 | . 113 646 . . 229 Thermal 279 | . 89 190 . . . Explosive . | . . . . . . Electromagnetic . | . . . . . . Impact . | . . . . . . Slashing . | . . . . . . Piercing . | . . . . . . Highest Corruption 5 | . . . . 5 . Average Corruption 5 | . . . . 5 . Corruption Purged . | . . . . . . Corruption Blocked . | . . . . . . Overload Shots . | . . . . . . Overflow Damage 6 | . . 6 . . . Projectiles 6 | . . 6 . . . Explosions . | . . . . . . Melee . | . . . . . . Knockbacks 8 | . . 8 . . . Impact . | . . . . . . Kinetic 7 | . . 7 . . . Secondary 1 | . . 1 . . . Self-Inflicted Damage . | . . . . . . Shots . | . . . . . . Rammed . | . . . . . . Targets Rammed . | . . . . . . Kicked . | . . . . . . Crushed . | . . . . . . Highest Temperature 130 | . 60 70 . . 130 Average Temperature 33 | . 25 25 . . 59 Received Heat Transfer 195 | . . 186 . . 9 Siege Activations . | . . . . . . Martial Activations . | . . . . . . Shielding Activations . | . . . . . . Robots Disrupted . | . . . . . . Combat Hostiles . | . . . . . . Robots Corrupted . | . . . . . . Combat Hostiles . | . . . . . . Parts Fried . | . . . . . . Impact Corruptions . | . . . . . . Robots Melted . | . . . . . . Combat Hostiles . | . . . . . . Parts Melted . | . . . . . . Heat Transferred 625 | . 200 425 . . . Parts Sabotaged . | . . . . . . Parts Stolen . | . . . . . . Parts Stripped . | . . . . . . Power Chain Reactions . | . . . . . . Alert | -11 -10 -10 -10 -9 -8 ------- Run | Yrd Mat Min Exi Min Mat Maximum Alert Level . | . . . . . . Low Security (%) 100 | 100 100 100 . 100 100 Level 1 . | . . . . . . Level 2 . | . . . . . . Level 3 . | . . . . . . Level 4 . | . . . . . . Level 5 . | . . . . . . High Security . | . . . . . . Max Security . | . . . . . . Peak Influence 155 | . 67 132 . 30 155 Initial 14 | . . 14 . . . Average 33 | . 33 35 . 7 47 Influence Increases 706 | . 147 296 . 30 233 Destroy 0b10 Robot/C 460 | . 120 260 . . 80 Destroy 0b10 Robot/NC 10 | . 5 5 . . . Destroy Leader 52 | . 22 10 . . 20 Successful Hack 13 | . . . . . 13 Disable Machine 30 | . . . . . 30 Destroy Structure 21 | . . 6 . . 15 Partial Spotted 60 | . . . . 30 30 Lose Combat Pursuer 60 | . . 15 . . 45 Influence Decreases 569 | . 110 217 116 30 96 Entered New Map 139 | . . 23 116 . . Time Decay 344 | . 110 154 . 20 60 Lost Part 86 | . . 40 . 10 36 Squads Dispatched 4 | . . 1 . . 3 Investigation 1 | . . 1 . . . Extermination . | . . . . . . Reinforcement 3 | . . . . . 3 Assault . | . . . . . . Garrison . | . . . . . . Intercept . | . . . . . . Searches Triggered . | . . . . . . Construction Impeded . | . . . . . . Haulers Reinforced . | . . . . . . Active Scanning Responses . | . . . . . . Cargo Convoy Interrupts . | . . . . . . Stealth | -11 -10 -10 -10 -9 -8 --------- Run | Yrd Mat Min Exi Min Mat Distress Signals 1 | . . . . 1 . Communications Jammed . | . . . . . . Distress Signals . | . . . . . . Times Spotted 45 | . 11 16 . 8 10 Peak Tracking Total 10 | . 6 3 . 10 4 Tactical Retreats 5 | . . 2 . 1 2 Traps | -11 -10 -10 -10 -9 -8 ------- Run | Yrd Mat Min Exi Min Mat Traps Triggered . | . . . . . . Indirectly . | . . . . . . Trap Hack Attempts . | . . . . . . Triggered . | . . . . . . Disarmed . | . . . . . . Reprogrammed . | . . . . . . Reused . | . . . . . . Traps Extracted . | . . . . . . Installed . | . . . . . . Triggered . | . . . . . . Machines | -11 -10 -10 -10 -9 -8 ---------- Run | Yrd Mat Min Exi Min Mat Machines Disabled 2 | . . . . . 2 Max in Single Turn 1 | . . . . . 1 Machines Repaired . | . . . . . . Machines Dismantled . | . . . . . . Machines Sabotaged . | . . . . . . Overloaded Fab Kills . | . . . . . . Hacking | -11 -10 -10 -10 -9 -8 --------- Run | Yrd Mat Min Exi Min Mat Machines Accessed 11 | . 1 1 4 . 5 Terminals 5 | . 1 . . . 4 Fabricators . | . . . . . . Repair Stations . | . . . . . . Recycling Units 1 | . . . . . 1 Scanalyzers . | . . . . . . Garrison Access . | . . . . . . Total Hacks 22 | . 2 1 4 . 15 Successful 11 | . . 1 4 . 6 Failed 11 | . 2 . . . 9 Catastrophic 2 | . . . . . 2 Database Lockouts . | . . . . . . Manual . | . . . . . . Terminals 15 | . 2 . . . 13 Fabricators . | . . . . . . Repair Stations . | . . . . . . Recycling Units 2 | . . . . . 2 Scanalyzers . | . . . . . . Garrison Access . | . . . . . . Terminal Hacks 11 | . . 1 4 . 6 Record 4 | . . . 4 . . Prototype ID Bank 1 | . . . . . 1 Open Door 1 | . . 1 . . . Emergency Access Points 3 | . . . . . 3 Locate Traps 2 | . . . . . 2 Fabricator Hacks . | . . . . . . Repair Station Hacks . | . . . . . . Recycling Unit Hacks . | . . . . . . Scanalyzer . | . . . . . . Garrison Access Hacks . | . . . . . . Unauthorized Hacks . | . . . . . . Terminals . | . . . . . . Fabricators . | . . . . . . Repair Stations . | . . . . . . Recycling Units . | . . . . . . Scanalyzers . | . . . . . . Garrison Access . | . . . . . . Data Cores Recovered . | . . . . . . Used . | . . . . . . Hacking Detections 6 | . 1 . . . 5 Full Trace Events . | . . . . . . Feedback Events . | . . . . . . Feedback Blocked . | . . . . . . Robot Schematics Acquired . | . . . . . . Robots Built . | . . . . . . Authchips . | . . . . . . Time . | . . . . . . Total Robot Build Rating . | . . . . . . Part Schematics Acquired . | . . . . . . Parts Built . | . . . . . . Authchips . | . . . . . . Time . | . . . . . . Total Part Build Rating . | . . . . . . Parts Repaired . | . . . . . . Time . | . . . . . . Parts Recycled . | . . . . . . Recycled Matter . | . . . . . . Retrieved Matter . | . . . . . . Retrieved Components . | . . . . . . Parts Scanalyzed . | . . . . . . Part Schematics Acquired . | . . . . . . Parts Damaged . | . . . . . . Bothacking | -11 -10 -10 -10 -9 -8 ------------ Run | Yrd Mat Min Exi Min Mat Used RIF Installer . | . . . . . . Robots Hacked . | . . . . . . Non-combat . | . . . . . . Combat . | . . . . . . Robot Hacks Applied . | . . . . . . Relay Couplers Released . | . . . . . . Fabnet Peak Effective % . | . . . . . . Robots Rewired . | . . . . . . Allies Hacked . | . . . . . . Hacks Repelled . | . . . . . . Allies | -11 -10 -10 -10 -9 -8 -------- Run | Yrd Mat Min Exi Min Mat Total Allies . | . . . . . . Largest Group . | . . . . . . Highest-Rated Group . | . . . . . . Highest-Rated Ally . | . . . . . . Total Orders . | . . . . . . Ally Attacks . | . . . . . . Total Damage . | . . . . . . Kills . | . . . . . . Allies Corrupted . | . . . . . . Allies Melted . | . . . . . . Intel | -11 -10 -10 -10 -9 -8 ------- Run | Yrd Mat Min Exi Min Mat Active Infowar (turns) 1165 | . 50 684 305 30 96 Optics 1069 | . 50 684 305 30 . Terrain 96 | . . . . . 96 Seismic 653 | . 25 628 . . . Robot Analysis Total . | . . . . . . Derelict Logs Recovered 1 | . . . . 1 . Drone Launches . | . . . . . . Drone Recoveries . | . . . . . . Exploration | -11 -10 -10 -10 -9 -8 ------------- Run | Yrd Mat Min Exi Min Mat Turns Passed 1489 | 47 245 684 305 46 162 Spaces Moved 1566 | 35 140 256 810 93 232 Core 14 | 8 . 6 . . . Treads . | . . . . . . Legs 258 | 27 140 91 . . . Wheels . | . . . . . . Hover . | . . . . . . Flight 1294 | . . 159 810 93 232 Fastest Speed 27 | 50 120 37 37 37 27 Average Speed 53 | 104 120 86 37 37 31 Slowest Speed 150 | 120 120 150 37 37 111 Overloaded Moves . | . . . . . . Propulsion Burnouts . | . . . . . . Robots Hopped 2 | . . . . 2 . Potential Cave-ins 4 | . . . . 4 . Cave-ins Triggered 1 | . . . . 1 . Exploration Rate (%) 36 | 3 29 44 94 21 25 Regions Visited 5 Branch Regions 3 Pre-discovered Areas . | . . . . . . Known Exits Taken 1 | . . . . 1 . Unknown Exits Taken 4 | 1 1 1 1 . . Scrap Searched . | . . . . . . Spaces Dug . | . . . . . . Terrain Destroyed 20 | . . 6 . . 14 Melee . | . . . . . . Projectile 20 | . . 6 . . 14 AOE . | . . . . . . Terrain Rammed . | . . . . . . Walls Destroyed . | . . . . . . Machines Disabled . | . . . . . . Actions | -11 -10 -10 -10 -9 -8 --------- Run | Yrd Mat Min Exi Min Mat Total 2055 | 45 180 623 815 101 291 Wait 319 | . 11 281 . 11 16 Move 1556 | 34 139 255 809 87 232 Hop 2 | . . . . 2 . Pick Up 23 | 6 5 1 2 . 9 Fast Attach 11 | . 3 7 1 . . Attach 17 | 5 . . . . 12 Detach 1 | . . . . . 1 Swap 7 | . . 4 . . 3 Drop 16 | . 2 9 3 . 2 Fire 102 | . 20 66 . . 16 Melee . | . . . . . . Ram . | . . . . . . Kick . | . . . . . . Crush . | . . . . . . Escape Stasis 1 | . . . . 1 . Rewire . | . . . . . . Trap . | . . . . . . Miscellaneous . | . . . . . . Route ------- -11/Scrapyard -10/Materials -10/Mines -10/Exiles (discovered 2 exits: [*Min x2]) -9/Mines -8/Materials (discovered 1 exit: [*Fac]) History --------- Turn | Location | Event 5 | -11/Scrapyard | Discovered new exit (range 15) 48 | -11/Scrapyard | Entered Materials 265 | -10/Materials | Discovered new exit (range 15) 293 | -10/Materials | Entered Mines 308 | -10/Mines | Build established: Mutant 308 | -10/Mines | Met a Derelict bent on vengeance 327 | -10/Mines | Excavation squad dispatched 327 | -10/Mines | A large section of the Mines collapsed 577 | -10/Mines | Excavation squad dispatched 718 | -10/Mines | Core integrity fell below 50% 787 | -10/Mines | Met a Derelict shopkeep closing up shop 827 | -10/Mines | Excavation squad dispatched 879 | -10/Mines | Core integrity fell below 20% 958 | -10/Mines | Lost 3 parts (2n1u) 974 | -10/Mines | Deemed a non-threat by the Exiles lab entrance 975 | -10/Mines | Discovered new exit (range 5) 977 | -10/Mines | Entered Exiles 977 | -10/Exiles | Found Exiles lab abandoned 1090 | -10/Exiles | Discovered new exit (range 15) 1185 | -10/Exiles | Discovered new exit (range 17) 1221 | -10/Exiles | Build established: Scavenger-Mutant 1282 | -10/Exiles | Entered Mines 1283 | -9/Mines | Assembled infested the area 1288 | -9/Mines | Assisted by a Guerilla fighting off Assembled 1288 | -9/Mines | Identified exit to Materials 1312 | -9/Mines | Crushed by falling debris 1328 | -9/Mines | Entered Materials 1328 | -8/Materials | Evolved 4 slots: Propulsion x3, Utility x1 1379 | -8/Materials | Discovered new exit (range 6) 1490 | -8/Materials | Self-destructed Last Messages --------------- 01459_ Acquired 7 matter. 01459_ U-05 Engineer builds a Wall. 01460_ Acquired Flight Unit. 01461_ Acquired 3 matter. 01461_ Acquired 5 matter. 01463_ U-05 Engineer builds a Wall. 01468_ Connecting with Terminal... >>Access(Emergency) Found 2 emergency access doors: (29,74) (4,71) Map updated. 01469_ Connecting with Recycling Unit... 01474_ Acquired Imp. VTOL Module. 01481_ C-17 Slicer destroyed. 01482_ C-17 Slicer knocked back. 01482_ C-17 Slicer destroyed. 01485_ Flight Unit destroyed. 01487_ ALERT: Suspicious intruders detected, dispatching Cutter reinforcements to area. Map ----- +----------------------------------------------------+ | ?#// #####???#?#?????????????????????????????? | | ##// #???????????????????????????????????? | | ?# #??#??? ? ??????????????????????????? | | ?# ] #?????? ????????????????????????????? | | ?##### #????#?????#####????????????????????? | | ??#### #?#??? ???? ????????????????????? | | ######+## #??##??? ?? ?????????????????????? | | # # #?#?#?????? ?????????????????????? | | # # #?#?#??????# #?????#???????????????? | | #]!! # #?##???????# #???# ????????????????? | | #]!! # ###?#??????#%!#?? ????????????????? | | #!! # ####???#####= #? ????????????????? | | # # #?#??###"""# #?""" ????????????????? | | # # ########"T"# # """ ????????????????? | | # """ # !=# """ #???????????????? | | # """ # ! ]%+ #???????????????? | | # """ + #### Y# [[!#???????????????? | | # # ####+## #??[[!#???????????????? | | ####+#### # # " " # [!!#???????????????? | | # ! ## # !! # "Y" + #???????????????? | | # "" "# + !! # """ # ! #???????????????? | | # "" %# # !! + ## #??#+##???????????????? | | # "" *## # # ### #??????????????????????? | | # [%## ####### #;# #??????????????????????? | | # "" % # #"##? = #;c#??????????????????????? | | # """ =+% ##@#??????????????????????? | | # """ #% H ## #??????????????????????? | | # # ## %## #??????????????????????? | | # """ !# ###+####+###????????????????????? | | # """ # ## #????????????????????? | | # """ ]# ## #????????????????????? | | # # ## !! #????????????????????? | | ######## ## !] #????????????????????? | | ???#?"? # #????????????????????? | | ????#"? + #????????????????????? | | ##??##?#+######## #????????????????????? | | ????? ?? ?????# #????????????????????? | | ????????"? ?????###########????????????????????? | | ???????"???????????????????????????????????????? | | ????#??????????????????????????????????????????? | | ???????????????????????????????????????????????? | | ???????????????????????????????????????????????? | | ???????????????????????????????????????????????? | | ???????????????????????????????????????????????? | | ???????????????????????????????????????????????? | | ???????????????????????????????????????????????? | | ???????????????????????????????????????????????? | | | | | | | +----------------------------------------------------+ Best States ------------- Heat Dissipation 31 Energy Generation 10 Energy Capacity 250 Matter Stores 300 Matter Capacity 300 Sight Range 18 Terrain Scan Range 16 Terrain Scan Density 110 Evasion (%) 64 Item Schematics ----------------- None Robot Schematics ------------------ None Fabricated ------------ Nothing Repaired ---------- Nothing Alien Tech Used ----------------- None Achievements -------------- None Challenges ------------ None Game ------ Seed CombatEfficiencySpiker Manual? 0 Play Time 00:20:53 Cumulative 17.2 hours Start 2025.05.31 @ 02:23:54 End 2025.05.31 @ 18:36:32 Sessions 2 Manual Loads 0 Difficulty Rogue Special Mode None Game No. 23 Rogue 17 Adventurer 0 Explorer 6 Win Type - Total 0 Types 0/0/0/0/0/0/0/0/0/0 Lore% 13 Gallery% 14 Achievement% 19 Wizard Run 0 Options --------- Layout 0 ASCII 0 Keyboard 0 Movement Numpad Keybinds 0 Fullscreen 2 Font 18/SmallcapsGlow Map View 76x50 Zoom Use 0% Tactical HUD 1 Map Filters NONE Filters NONE Steam 1 RUN: 0806d1f1-8802-4355-9684-5275d44d04e5